Workbook

Sheet Лист1
A1: Школа | C1: МБОУ " СОШ №4 " ЧМР | F1: Утвердил: | G1: должность | H1: Директор
A2: Типовое примерное меню приготавливаемых блюд | G2: фамилия | H2: Нуруллина Гульсина Гумеровна
A3: Возрастная категория | E3: 7-11 лет | G3: дата | H3: 9 | I3: 1 | J3: 2024
H4: день | I4: месяц | J4: год
A5: Неделя | B5: День недели | C5: Прием пищи | D5: Раздел меню | E5: Блюда | F5: Вес блюда, г | G5: Белки | H5: Жиры | I5: Углеводы | J5: Калорийность | K5: № рецептуры | L5: Цена
A6: 1 | B6: 1 | C6: Завтрак | D6: Холодная закуска | E6: ='[1]1'!$D$8 -> Гренки с сыром | F6: 40 | G6: 0.82 | H6: 3.05 | I6: 8.71 | J6: 120.20
D7: Гор.блюдо | E7: ='[1]1'!$D$4 -> Каша молочная ячневая жидкая со слив. маслом | F7: 210 | G7: 7.30 | H7: 10.39 | I7: 16.43 | J7: 288.40
D8: Хлеб | E8: Хлеб пшеничный | F8: 20 | G8: 2.28 | H8: 0.24 | I8: 14.76 | J8: 70.32
D9: Хлеб | E9: Хлеб ржано-пшеничный | F9: 30 | G9: 1.00 | H9: 0.20 | I9: 9.00 | J9: 41.80
D10: Гор.напиток | E10: Чай с сахаром | F10: 210 | G10: 0.02 | H10: 0.01 | I10: 14.98 | J10: 60.00
D13: итого | F13: =SUM(F6:F12) -> 510 | G13: =SUM(G6:G12) -> 11.421 | H13: 13.885 | I13: 63.875 | J13: 580.72 | L13: 62.67
A14: =A6 -> 1 | B14: =B6 -> 1 | C14: Обед | D14: закуска
D15: 1 блюдо
D16: 2 блюдо
D17: гарнир
D18: напиток
D19: хлеб бел.
D20: хлеб черн.
D23: итого | F23: =SUM(F14:F22) -> 0 | G23: =SUM(G14:G22) -> 0 | H23: 0 | I23: 0 | J23: 0 | L23: =SUM(L14:L22) -> 0
A24: =A6 -> 1 | B24: =B6 -> 1 | C24: Итого за день: | F24: =F13+F23 -> 510 | G24: =G13+G23 -> 11.421 | H24: 13.885 | I24: 63.875 | J24: 580.72 | L24: 62.67
A25: 1 | B25: 2 | C25: Завтрак | D25: Выпечка | E25: ='[2]1'!$D$8 -> Булочка к чаю | F25: 50 | G25: ='[2]1'!H8 -> 0.98 | H25: ='[2]1'!I8 -> 0.00 | I25: ='[2]1'!J8 -> 2.01 | J25: 15.00
D26: Гор.блюдо | E26: Плов с из курицы | F26: ='[2]1'!$E$4 -> 205 | G26: ='[2]1'!H4 -> 12.73 | H26: ='[2]1'!I4 -> 13.70 | I26: ='[2]1'!J4 -> 27.34 | J26: 303.00
D27: Хлеб | E27: Хлеб пшеничный | F27: 30 | G27: 2.28 | H27: 0.24 | I27: 14.76 | J27: 70.32
D28: Хлеб | E28: Хлеб ржано-пшеничный | F28: 20 | G28: 1.00 | H28: 0.20 | I28: 9.00 | J28: 41.80
D29: Гор.напиток | E29: Компот из свежих яблок | F29: 218 | G29: 3.97 | H29: 2.10 | I29: 25.17 | J29: 135.45
D32: итого | F32: =SUM(F25:F31) -> 523 | G32: =SUM(G25:G31) -> 20.96 | H32: 16.24 | I32: 78.28 | J32: 565.57 | L32: =$L$13 -> 62.67
A33: =A25 -> 1 | B33: =B25 -> 2 | C33: Обед | D33: закуска
D34: 1 блюдо
D35: 2 блюдо
D36: гарнир
D37: напиток
D38: хлеб бел.
D39: хлеб черн.
D42: итого | F42: =SUM(F33:F41) -> 0 | G42: =SUM(G33:G41) -> 0 | H42: 0 | I42: 0 | J42: 0 | L42: 0
A43: =A25 -> 1 | B43: =B25 -> 2 | C43: Итого за день: | F43: =F32+F42 -> 523 | G43: =G32+G42 -> 20.96 | H43: 16.24 | I43: 78.28 | J43: 565.57 | L43: 62.67
A44: 1 | B44: 3 | C44: Завтрак | D44: гарнир | E44: ='[3]1'!$D$8 -> Гарнир гречневый с морковью | F44: 155 | G44: ='[3]1'!H8 -> 3.09 | H44: ='[3]1'!I8 -> 4.66 | I44: ='[3]1'!J8 -> 22.03 | J44: 142.38
D45: гор блюдо | E45: ='[3]1'!$D$4 -> Тефтели из говядины с соусом кр осн. | F45: 110 | G45: ='[3]1'!H4 -> 7.99 | H45: ='[3]1'!I4 -> 12.40 | I45: ='[3]1'!J4 -> 14.40 | J45: 204.00
D46: хлеб | E46: Хлеб пшеничный | F46: 30 | G46: 2.28 | H46: 0.24 | I46: 14.76 | J46: 70.32
D47: хлеб | E47: Хлеб ржано-пшеничный | F47: 20 | G47: 1.00 | H47: 0.20 | I47: 9.00 | J47: 41.80
D48: гор напиток | E48: Какао с молоком | F48: 200 | G48: 3 | H48: 2 | I48: 29 | J48: 143
D51: итого | L51: =$L$32 -> 62.67
A52: =A44 -> 1 | B52: =B44 -> 3 | C52: Обед | D52: закуска
D53: 1 блюдо
D54: 2 блюдо
D55: гарнир
D56: напиток
D57: хлеб бел.
D58: хлеб черн.
D61: итого | F61: =SUM(F52:F60) -> 0 | G61: =SUM(G52:G60) -> 0 | H61: 0 | I61: 0 | J61: 0 | L61: 0
A62: =A44 -> 1 | B62: =B44 -> 3 | C62: Итого за день: | F62: =F51+F61 -> 0 | G62: =G51+G61 -> 0 | H62: 0 | I62: 0 | J62: 0 | L62: 62.67
A63: 1 | B63: 4 | C63: Завтрак | D63: Холодная закуска | E63: ='[4]1'!$D$8 -> Бутерброд с сыром | F63: 40 | G63: ='[4]1'!H8 -> 1.80 | H63: ='[4]1'!I8 -> 0.00 | I63: ='[4]1'!J8 -> 10.80 | J63: 49.00
D64: Гор.блюдо | E64: Макаронник с мясом и маслом | F64: 210 | G64: ='[4]1'!H4 -> 6.86 | H64: ='[4]1'!I4 -> 6.58 | I64: ='[4]1'!J4 -> 30.00 | J64: 306.66
D65: Хлеб | E65: Хлеб пшеничный | F65: 30 | G65: 2.28 | H65: 0.24 | I65: 14.76 | J65: 70.32
D66: Хлеб | E66: Хлеб ржано-пшеничный | F66: 20 | G66: 1.00 | H66: 0.20 | I66: 9.00 | J66: 41.80
D67: Гор.напиток | E67: Чай с сахаром | F67: 210 | G67: 0.02 | H67: 0.01 | I67: 14.98 | J67: 60.00
D70: итого | F70: =SUM(F63:F69) -> 510 | G70: =SUM(G63:G69) -> 11.961 | H70: 7.025 | I70: 79.54 | J70: 527.78 | L70: =$L$51 -> 62.67
A71: =A63 -> 1 | B71: =B63 -> 4 | C71: Обед | D71: закуска
D72: 1 блюдо
D73: 2 блюдо
D74: гарнир
D75: напиток
D76: хлеб бел.
D77: хлеб черн.
D80: итого | F80: =SUM(F71:F79) -> 0 | G80: =SUM(G71:G79) -> 0 | H80: 0 | I80: 0 | J80: 0 | L80: 0
A81: =A63 -> 1 | B81: =B63 -> 4 | C81: Итого за день: | F81: =F70+F80 -> 510 | G81: =G70+G80 -> 11.961 | H81: 7.025 | I81: 79.54 | J81: 527.78 | L81: 62.67
A82: 1 | B82: 5 | C82: Завтрак | D82: гарнир | E82: ='[5]1'!$D$4 -> Гарнир "Сложный" | F82: 155 | G82: ='[5]1'!H4 -> 5.47 | H82: ='[5]1'!I4 -> 6.37 | I82: ='[5]1'!J4 -> 34.34 | J82: 204.00
D83: гор блюдо | E83: ='[5]1'!$D$7 -> Котлеты из рублен. курицы с гречкой с соусом кр осн | F83: 110 | G83: ='[5]1'!H7 -> 11.00 | H83: ='[5]1'!I7 -> 10.50 | I83: ='[5]1'!J7 -> 9.78 | J83: 180.00
D84: хлеб | E84: Хлеб пшеничный | F84: 30 | G84: 2.28 | H84: 0.24 | I84: 14.76 | J84: 70.32
D85: хлеб | E85: Хлеб ржано-пшеничный | F85: 20 | G85: 1.00 | H85: 0.20 | I85: 9.00 | J85: 41.80
D86: гор напиток | E86: Кисель | F86: 200 | G86: 3.30 | H86: 1.51 | I86: 29.06 | J86: 143.03
D89: итого | F89: =SUM(F82:F88) -> 515 | G89: =SUM(G82:G88) -> 23.05 | H89: 18.82 | I89: 96.94 | J89: 639.15 | L89: =$L$51 -> 62.67
A90: =A82 -> 1 | B90: =B82 -> 5 | C90: Обед | D90: закуска
D91: 1 блюдо
D92: 2 блюдо
D93: гарнир
D94: напиток
D95: хлеб бел.
D96: хлеб черн.
D99: итого | F99: =SUM(F90:F98) -> 0 | G99: =SUM(G90:G98) -> 0 | H99: 0 | I99: 0 | J99: 0 | L99: 0
A100: =A82 -> 1 | B100: =B82 -> 5 | C100: Итого за день: | F100: =F89+F99 -> 515 | G100: =G89+G99 -> 23.05 | H100: 18.82 | I100: 96.94 | J100: 639.15 | L100: 62.67
A101: 2 | B101: 1 | C101: Завтрак | D101: гор.блюдо | E101: ='[6]1'!$D$4 -> Каша геркулесовая молочная со слив. маслом | F101: 240 | G101: ='[6]1'!H4 -> 7.30 | H101: ='[6]1'!I4 -> 10.39 | I101: ='[6]1'!J4 -> 16.43 | J101: ='[6]1'!$G$4 -> 388.40
D102: хлеб | E102: Хлеб пшеничный | F102: 30 | G102: 2.28 | H102: 0.24 | I102: 14.76 | J102: 70.32
D103: хлеб | E103: Хлеб ржано-пшеничный | F103: 20 | G103: 1.00 | H103: 0.20 | I103: 9.00 | J103: 41.80
D104: гор напиток | E104: ='[6]1'!$D$5 -> Компот из свежих яблок | F104: 218 | G104: ='[6]1'!H5 -> 0.02 | H104: ='[6]1'!I5 -> 0.01 | I104: ='[6]1'!J5 -> 14.98 | J104: 80.00
D108: итого | F108: =SUM(F101:F107) -> 508 | G108: =SUM(G101:G107) -> 10.601 | H108: 10.835 | I108: 55.17 | J108: 580.52 | L108: =$L$89 -> 62.67
A109: =A101 -> 2 | B109: =B101 -> 1 | C109: Обед | D109: закуска
D110: 1 блюдо
D111: 2 блюдо
D112: гарнир
D113: напиток
D114: хлеб бел.
D115: хлеб черн.
D118: итого | F118: =SUM(F109:F117) -> 0 | G118: =SUM(G109:G117) -> 0 | H118: 0 | I118: 0 | J118: 0 | L118: =SUM(L109:L117) -> 0
A119: =A101 -> 2 | B119: =B101 -> 1 | C119: Итого за день: | F119: =F108+F118 -> 508 | G119: =G108+G118 -> 10.601 | H119: 10.835 | I119: 55.17 | J119: 580.52 | L119: 62.67
A120: 2 | B120: 2 | C120: Завтрак | D120: гарнир | E120: ='[7]1'!$D$8 -> Зеленый горошек | F120: ='[7]1'!$E$8 -> 40 | G120: 5.47 | H120: 6.37 | I120: 34.34 | J120: ='[7]1'!$G$8 -> 142.38
D121: гор блюдо | E121: ='[7]1'!$D$4 -> Овощное рогу с курицей | F121: 210 | G121: ='[7]1'!H4 -> 11.38 | H121: ='[7]1'!I4 -> 13.53 | I121: ='[7]1'!J4 -> 25.42 | J121: ='[7]1'!$G$4 -> 268.97
D122: хлеб | E122: Хлеб пшеничный | F122: 30 | G122: 2.28 | H122: 0.24 | I122: 14.76 | J122: 70.32
D123: хлеб | E123: Хлеб ржано- пшеничный | F123: 20 | G123: 1.00 | H123: 0.20 | I123: 9.00 | J123: 41.80
D124: гор напиток | E124: Кисель | F124: 200 | G124: 3 | H124: 2 | I124: 29 | J124: 143
D127: итого | F127: =SUM(F120:F126) -> 500 | G127: =SUM(G120:G126) -> 23.43 | H127: 21.85 | I127: 112.58 | J127: 666.501 | L127: =$L$108 -> 62.67
A128: =A120 -> 2 | B128: =B120 -> 2 | C128: Обед | D128: закуска
D129: 1 блюдо
D130: 2 блюдо
D131: гарнир
D132: напиток
D133: хлеб бел.
D134: хлеб черн.
D137: итого | F137: =SUM(F128:F136) -> 0 | G137: =SUM(G128:G136) -> 0 | H137: 0 | I137: 0 | J137: 0 | L137: =SUM(L128:L136) -> 0
A138: =A120 -> 2 | B138: =B120 -> 2 | C138: Итого за день: | F138: =F127+F137 -> 500 | G138: =G127+G137 -> 23.43 | H138: 21.85 | I138: 112.58 | J138: 666.501 | L138: 62.67
A139: 2 | B139: 3 | C139: Завтрак | D139: Гор.блюдо | E139: ='[8]1'!$D$4 -> Картофельное пюре с маслом | F139: 155 | G139: ='[8]1'!H4 -> 3.83 | H139: ='[8]1'!I4 -> 5.42 | I139: ='[8]1'!J4 -> 41.60 | J139: ='[8]1'!$G$4 -> 230.52
D140: Гор. блюдо | E140: ='[8]1'!$D$7 -> Тефтели рыбные с соусом | F140: 110 | G140: ='[8]1'!H7 -> 8.52 | H140: ='[8]1'!I7 -> 8.63 | I140: ='[8]1'!J7 -> 10.20 | J140: 183.00
D141: Хлеб | E141: Хлеб ржано-пшеничный | F141: 20 | G141: 1.00 | H141: 0.20 | I141: 9.00 | J141: 41.80
D142: Хлеб | E142: Хлеб пшеничный | F142: 30 | G142: 2.28 | H142: 0.24 | I142: 14.76 | J142: 70.32
D143: Гор напиток | E143: ='[8]1'!$D$5 -> Чай с сахаром | F143: ='[8]1'!$E$5 -> 210 | G143: ='[8]1'!H5 -> 2 | H143: ='[8]1'!I5 -> 2 | I143: ='[8]1'!J5 -> 15 | J143: ='[8]1'!$G$5 -> 83
D146: итого | F146: =SUM(F139:F145) -> 525 | G146: =SUM(G139:G145) -> 17.234 | H146: 16.14 | I146: 90.92 | J146: 608.33 | L146: =$L$127 -> 62.67
A147: =A139 -> 2 | B147: =B139 -> 3 | C147: Обед | D147: закуска
D148: 1 блюдо
D149: 2 блюдо
D150: гарнир
D151: напиток
D152: хлеб бел.
D153: хлеб черн.
D156: итого | F156: =SUM(F147:F155) -> 0 | G156: =SUM(G147:G155) -> 0 | H156: 0 | I156: 0 | J156: 0 | L156: =SUM(L147:L155) -> 0
A157: =A139 -> 2 | B157: =B139 -> 3 | C157: Итого за день: | F157: =F146+F156 -> 525 | G157: =G146+G156 -> 17.234 | H157: 16.14 | I157: 90.92 | J157: 608.33 | L157: 62.67
A158: 2 | B158: 4 | C158: Завтрак | D158: Гор.блюдо | E158: ='[9]1'!$D$8 -> Макароны отварные с морковью | F158: 155 | G158: ='[9]1'!H8 -> 3.09 | H158: ='[9]1'!I8 -> 4.66 | I158: ='[9]1'!J8 -> 22.03 | J158: 206.00
D159: =$D$158 -> Гор.блюдо | E159: ='[9]1'!$D$4 -> Сосиски с соусом крю основ | F159: 90 | G159: ='[9]1'!H4 -> 6.40 | H159: ='[9]1'!I4 -> 6.77 | I159: ='[9]1'!J4 -> 0.80 | J159: 210.00
D160: Хлеб | E160: ='[9]1'!D6 -> Хлеб пшеничный | F160: 30 | G160: ='[9]1'!H6 -> 2.28 | H160: ='[9]1'!I6 -> 0.24 | I160: ='[9]1'!J6 -> 14.76 | J160: ='[9]1'!$G$6 -> 70.32
D161: Хлеб | E161: ='[9]1'!D7 -> Хлеб ржано-пшеничный | F161: 20 | G161: ='[9]1'!H7 -> 1 | H161: ='[9]1'!I7 -> 0 | I161: ='[9]1'!J7 -> 9 | J161: 42
D162: Гор напиток | E162: ='[9]1'!$D$5 -> Чай с лимоном с сахаром | F162: 213 | G162: ='[9]1'!H5 -> 0 | H162: ='[9]1'!I5 -> 0 | I162: ='[9]1'!J5 -> 15 | J162: 60
D165: итого | F165: =SUM(F158:F164) -> 508 | G165: =SUM(G158:G164) -> 12.791 | H165: 11.872 | I165: 61.562 | J165: 588.32 | L165: =$L$146 -> 62.67
A166: =A158 -> 2 | B166: =B158 -> 4 | C166: Обед | D166: закуска
D167: 1 блюдо
D168: 2 блюдо
D169: гарнир
D170: напиток
D171: хлеб бел.
D172: хлеб черн.
D175: итого | F175: =SUM(F166:F174) -> 0 | G175: =SUM(G166:G174) -> 0 | H175: 0 | I175: 0 | J175: 0 | L175: =SUM(L166:L174) -> 0
A176: =A158 -> 2 | B176: =B158 -> 4 | C176: Итого за день: | F176: =F165+F175 -> 508 | G176: =G165+G175 -> 12.791 | H176: 11.872 | I176: 61.562 | J176: 588.32 | L176: 62.67
A177: 2 | B177: 5 | C177: Завтрак | D177: Гор.блюдо | E177: ='[10]1'!$D$4 -> Запеканка рисовая с творогом и вареньем | F177: 240 | G177: 6.86 | H177: 6.58 | I177: 30.00 | J177: ='[10]1'!$G$4 -> 206.66
D178: Гор.напиток | E178: Кисель | F178: 200 | G178: 11.38 | H178: 13.53 | I178: 25.42 | J178: 268.97
D179: Хлеб | E179: Хлеб пшеничный | F179: 30 | G179: 2.28 | H179: 0.24 | I179: 14.76 | J179: 70.32
D180: Хлеб | E180: Хлеб ржано-пшеничный | F180: 20 | G180: 1.00 | H180: 0.20 | I180: 9.00 | J180: 41.80
D184: итого | F184: =SUM(F177:F183) -> 490 | G184: =SUM(G177:G183) -> 21.52 | H184: 20.55 | I184: 79.18 | J184: 587.75 | L184: =$L$165 -> 62.67
A185: =A177 -> 2 | B185: =B177 -> 5 | C185: Обед | D185: закуска
D186: 1 блюдо
D187: 2 блюдо
D188: гарнир
D189: напиток
D190: хлеб бел.
D191: хлеб черн.
D194: итого | F194: =SUM(F185:F193) -> 0 | G194: =SUM(G185:G193) -> 0 | H194: 0 | I194: 0 | J194: 0 | L194: =SUM(L185:L193) -> 0
A195: =A177 -> 2 | B195: =B177 -> 5 | C195: Итого за день: | F195: =F184+F194 -> 490 | G195: =G184+G194 -> 21.52 | H195: 20.55 | I195: 79.18 | J195: 587.75 | L195: 62.67
C196: Среднее значение за период: | F196: =(F24+F43+F62+F81+F100+F119+F138+F157+F176+F195)/(IF(F24=0,0,1)+IF(F43=0,0,1)+IF(F62=0,0,1)+IF(F81=0,0,1)+IF(F100=0,0,1)+IF(F119=0,0,1)+IF(F138=0,0,1)+IF(F157=0,0,1)+IF(F176=0,0,1)+IF(F195=0,0,1)) -> 509.8888889 | G196: =(G24+G43+G62+G81+G100+G119+G138+G157+G176+G195)/(IF(G24=0,0,1)+IF(G43=0,0,1)+IF(G62=0,0,1)+IF(G81=0,0,1)+IF(G100=0,0,1)+IF(G119=0,0,1)+IF(G138=0,0,1)+IF(G157=0,0,1)+IF(G176=0,0,1)+IF(G195=0,0,1)) -> 16.99644444 | H196: 15.24633333 | I196: 79.783 | J196: 593.849 | L196: =(L24+L43+L62+L81+L100+L119+L138+L157+L176+L195)/(IF(L24=0,0,1)+IF(L43=0,0,1)+IF(L62=0,0,1)+IF(L81=0,0,1)+IF(L100=0,0,1)+IF(L119=0,0,1)+IF(L138=0,0,1)+IF(L157=0,0,1)+IF(L176=0,0,1)+IF(L195=0,0,1)) -> 62.67
